[Event "3rd Mersin Open 2018"]
[Site "Mersin"]
[Date "2018.09.10"]
[Round "3.10"]
[White "Koksal, Ege"]
[Black "Buke, Furkan"]
[Result "1-0"]
[ECO "E15"]
[WhiteElo "2367"]
[BlackElo "1964"]
[Annotator "NA"]
[PlyCount "77"]
[EventDate "2018.09.09"]
[EventType "swiss"]
[EventCountry "TUR"]
[SourceTitle "playchess.com"]
[Source "ChessBase"]
[SourceQuality "1"]
[TimeControl "5400+30"]

1. d4 {[%emt 0:00:30]} Nf6 {[%emt 0:04:30]} 2. c4 {[%emt 0:00:30]} e6 {[%emt 0:00:30]} 3. Nf3 {[%emt 0:00:00]} b6 {[%emt 0:00:00]} 4. g3 {[%emt 0:00:00]} Ba6 {[%emt 0:00:00]} 5. b3 {[%emt 0:00:00]} b5 {[%emt 0:00:00]} 6. cxb5 {[%emt 0:01:00]} Bxb5 {[%emt 0:01:00]} 7. Bg2 {[%emt 0:00:30]} d5 {[%emt 0:00:30]} 8. O-O {[%emt 0:00:00] E15: Queen's Indian: 4 g3 sidelines, 4 g3 Ba6 and 4 g3 Bb7 early deviations} Bd6 {[%emt 0:00:00]} (8... Be7 9. Nc3 Ba6 10. b4 O-O 11. Rb1 Nbd7 12. Bf4 Nh5 13. Bd2 Nhf6 14. Re1 c6 15. Bf4 Nh5 {1-0 (81) Bruzon Batista,L (2668)-Ortiz Suarez,I (2623) Merida 2014}) 9. Ba3 {[%emt 0:02:00]} Bxa3 {[%emt 0:02:00]} 10. Nxa3 {[%emt 0:00:00]} Ba6 {[%emt 0:00:00]} 11. Nc2 $146 {[%emt 0:03:00]} ({Predecessor:} 11. b4 Qd6 12. Rb1 Nbd7 13. Qc2 O-O 14. Rfc1 Rfc8 15. Bf1 Qb6 16. Qa4 c6 17. Rc2 Bb5 18. Qb3 Ne4 19. Rbc1 Nd6 20. e3 Bxf1 21. Kxf1 {½-½ (21) Lalic,B (2531)-Medvegy,Z (2444) Oberwart 2001}) 11... Qd6 {[%emt 0:02:00]} 12. Re1 {[%emt 0:05:30]} Nbd7 {[%emt 0:03:30]} 13. Nd2 {[%emt 0:04:30]} Bb7 {[%emt 0:01:30]} 14. b4 {[%emt 0:02:30]} O-O {[%emt 0:00:30]} 15. Nb3 {[%emt 0:00:00]} Rab8 {[%emt 0:04:30]} 16. Qd2 {[%emt 0:02:00]} Ne4 {[%emt 0:01:30]} 17. Qe3 {[%emt 0:00:30]} f5 {[%emt 0:01:30]} 18. Nc5 {[%emt 0:02:30]} a5 {[%emt 0:04:30]} (18... f4 $11 19. gxf4 Ndxc5 20. bxc5 Qxf4) 19. f3 {[%emt 0:06:30]} Nexc5 {[%emt 0:00:00]} 20. dxc5 {[%emt 0:01:30]} Qe7 {[%emt 0:07:00]} 21. Nd4 {[%emt 0:06:30]} e5 {[%emt 0:00:00]} 22. f4 {[%emt 0:00:30]} c6 {[%emt 0:02:00] [#]} 23. b5 $1 {[%emt 0:11:30]} Qxc5 {[%emt 0:02:30]} 24. fxe5 {[%emt 0:00:30]} (24. bxc6 $16 Bxc6 25. fxe5) 24... cxb5 {[%emt 0:04:30]} 25. Rac1 $11 {[%emt 0:00:00]} Qb6 {[%emt 0:00:00]} 26. e6 {[%emt 0:01:00]} Rbe8 {[%emt 0:02:00]} 27. Kh1 {[%emt 0:02:30]} Nf6 {[%emt 0:01:30]} 28. Qe5 {[%emt 0:01:30]} Ng4 {[%emt 0:01:30]} 29. Qf4 {[%emt 0:00:30]} h6 {[%emt 0:04:30]} 30. e3 {[%emt 0:03:30]} Nf6 {[%emt 0:06:30]} 31. Qc7 {[%emt 0:04:30]} Qxc7 {[%emt 0:01:30]} 32. Rxc7 {[%emt 0:02:30]} Bc8 {[%emt 0:00:30]} 33. Nxf5 {[%emt 0:00:30]} Rxe6 {[%emt 0:09:30]} 34. Rec1 {[%emt 0:16:30]} Bd7 {[%emt 0:00:30]} 35. Rxd7 {[%emt 0:00:30]} Nxd7 {[%emt 0:00:30]} 36. Bxd5 {[%emt 0:00:30]} Rfe8 {[%emt 0:01:30]} 37. Nd4 {[%emt 0:01:30]} Nf8 {[%emt 0:00:30]} 38. Nxe6 {[%emt 0:00:30]} Nxe6 {[%emt 0:00:30]} 39. Rc8 {[%emt 0:00:30]} 1-0

[Event "3rd Mersin Open 2018"]
[Site "Mersin"]
[Date "2018.09.10"]
[Round "3.11"]
[White "Aydemir, Sermin Naz"]
[Black "Kaya, Onur"]
[Result "1/2-1/2"]
[ECO "A03"]
[WhiteElo "1522"]
[BlackElo "1689"]
[Annotator "NA"]
[PlyCount "119"]
[EventDate "2018.09.09"]
[EventType "swiss"]
[EventCountry "TUR"]
[SourceTitle "playchess.com"]
[Source "ChessBase"]
[SourceQuality "1"]
[TimeControl "5400+30"]

1. g3 {[%emt 0:00:30]} Nf6 {[%emt 0:02:30]} 2. Bg2 {[%emt 0:00:00]} d5 {[%emt 0:00:00]} 3. d3 {[%emt 0:00:00]} c6 {[%emt 0:00:00]} 4. f4 {[%emt 0:00:00]} g6 {[%emt 0:12:30]} 5. Nf3 {[%emt 0:00:00]} Bg7 {[%emt 0:00:30]} 6. O-O {[%emt 0:00:00]} O-O {[%emt 0:00:00]} 7. Nbd2 {[%emt 0:01:00]} Ng4 {[%emt 0:04:00]} 8. Nb3 {[%emt 0:01:30]} Qb6+ {[%emt 0:04:30]} 9. d4 {[%emt 0:00:00]} a5 {[%emt 0:01:30]} 10. a4 {[%emt 0:02:00]} Nd7 {[%emt 0:07:30]} 11. h3 {[%emt 0:01:30]} Ngf6 {[%emt 0:00:00]} 12. g4 {[%emt 0:00:00]} Ne4 {[%emt 0:08:00]} 13. Kh2 {[%emt 0:03:00]} Qc7 {[%emt 0:20:30]} 14. Nfd2 {[%emt 0:14:30]} Nxd2 {[%emt 0:01:30]} 15. Qxd2 {[%emt 0:00:30]} Nf6 {[%emt 0:07:30]} 16. Qe1 {[%emt 0:02:30]} h5 {[%emt 0:05:30]} 17. g5 {[%emt 0:02:30]} Ne8 {[%emt 0:00:30]} 18. Qg3 {[%emt 0:04:30]} Bf5 {[%emt 0:02:39]} 19. c3 {[%emt 0:01:30]} Nd6 {[%emt 0:00:55]} 20. Nd2 {[%emt 0:00:00]} b5 {[%emt 0:03:44]} 21. axb5 {[%emt 0:03:00]} Nxb5 {[%emt 0:00:44]} 22. e4 {[%emt 0:00:00]} dxe4 {[%emt 0:00:30]} 23. Nxe4 {[%emt 0:00:00]} Nd6 {[%emt 0:00:30]} 24. Nc5 {[%emt 0:00:30]} e6 {[%emt 0:00:30]} 25. b3 {[%emt 0:14:30]} Nb7 {[%emt 0:08:09]} 26. Ba3 {[%emt 0:02:30]} Rfb8 {[%emt 0:05:22]} 27. Ne4 {[%emt 0:01:30]} Bf8 {[%emt 0:01:12]} 28. Nf6+ {[%emt 0:08:30]} Kg7 {[%emt 0:00:33]} 29. Bxf8+ {[%emt 0:00:30]} Kxf8 {[%emt 0:00:24]} 30. Qe3 {[%emt 0:01:30]} Nd8 {[%emt 0:01:52]} 31. c4 {[%emt 0:05:30]} Rb4 {[%emt 0:00:30]} 32. d5 {[%emt 0:03:30]} cxd5 {[%emt 0:01:05]} 33. cxd5 {[%emt 0:00:30]} Rab8 {[%emt 0:00:00]} 34. Rac1 {[%emt 0:00:30]} Qd6 {[%emt 0:00:49]} 35. Qc5 {[%emt 0:01:30]} Qxc5 {[%emt 0:00:44]} 36. Rxc5 {[%emt 0:00:00]} exd5 {[%emt 0:00:32]} 37. Bxd5 {[%emt 0:00:00]} Ne6 {[%emt 0:00:38]} 38. Rc4 {[%emt 0:05:30]} Rxc4 {[%emt 0:00:05]} 39. Bxc4 {[%emt 0:00:30]} Nc5 {[%emt 0:00:30]} 40. Re1 {[%emt 0:00:30]} Kg7 {[%emt 0:00:30]} 41. Ne8+ {[%emt 0:00:30]} Kf8 {[%emt 0:00:30]} 42. Nf6 {[%emt 0:00:30]} Kg7 {[%emt 0:00:30]} 43. Ne8+ {[%emt 0:00:30]} Kf8 {[%emt 0:00:32]} 44. Nf6 {[%emt 0:00:30]} Rd8 {[%emt 0:00:47]} 45. Re2 {[%emt 0:01:30]} Ne6 {[%emt 0:00:35]} 46. Kg3 {[%emt 0:04:28]} h4+ {[%emt 0:00:28]} 47. Kxh4 {[%emt 0:02:06]} Nxf4 {[%emt 0:00:00]} 48. Ra2 {[%emt 0:03:42]} Ne6 {[%emt 0:01:33]} 49. Rxa5 {[%emt 0:00:57]} Rd4+ {[%emt 0:00:31]} 50. Ng4 {[%emt 0:02:31]} Rf4 {[%emt 0:01:00]} 51. Kg3 {[%emt 0:01:51]} Rd4 {[%emt 0:00:33]} 52. Rd5 {[%emt 0:06:06]} Rxd5 {[%emt 0:00:25]} 53. Bxd5 {[%emt 0:00:43]} Nxg5 {[%emt 0:00:30]} 54. Nh6 {[%emt 0:00:42]} Be6 {[%emt 0:00:59]} 55. Bxe6 {[%emt 0:00:26]} Nxe6 {[%emt 0:00:30]} 56. Kg4 {[%emt 0:00:31]} Nd4 {[%emt 0:00:35]} 57. Kg5 {[%emt 0:01:34]} Kg7 {[%emt 0:01:06]} 58. Ng4 {[%emt 0:00:28]} Nxb3 {[%emt 0:00:10]} 59. h4 {[%emt 0:00:34]} Nc5 {[%emt 0:01:20]} 60. Ne3 {[%emt 0:00:00]} 1/2-1/2

[Event "3rd Mersin Open 2018"]
[Site "Mersin"]
[Date "2018.09.10"]
[Round "3.12"]
[White "Polat, Ahmet Eren"]
[Black "Mut, Emir"]
[Result "1/2-1/2"]
[ECO "B10"]
[WhiteElo "1669"]
[BlackElo "1487"]
[Annotator "NA"]
[PlyCount "92"]
[EventDate "2018.09.09"]
[EventType "swiss"]
[EventCountry "TUR"]
[SourceTitle "playchess.com"]
[Source "ChessBase"]
[SourceQuality "1"]
[TimeControl "5400+30"]

1. e4 {[%emt 0:00:30]} c6 {[%emt 0:01:30]} 2. Nf3 {[%emt 0:00:00]} d5 {[%emt 0:00:30]} 3. exd5 {[%emt 0:00:00]} cxd5 {[%emt 0:00:30]} 4. Ne5 {[%emt 0:00:30]} Nf6 {[%emt 0:03:30]} 5. d4 {[%emt 0:00:30]} h6 {[%emt 0:04:30]} 6. Bd3 {[%emt 0:00:30]} e6 {[%emt 0:00:30]} 7. c3 {[%emt 0:00:30]} Bd6 {[%emt 0:00:30]} 8. f4 {[%emt 0:00:30]} b6 {[%emt 0:14:30]} 9. Nd2 {[%emt 0:00:30]} Bb7 {[%emt 0:00:30]} 10. Qf3 {[%emt 0:01:30]} Nbd7 {[%emt 0:10:30]} 11. O-O {[%emt 0:00:30]} Qe7 {[%emt 0:05:30]} 12. a4 {[%emt 0:02:30]} a6 {[%emt 0:03:30]} 13. Qe2 {[%emt 0:01:30]} g6 {[%emt 0:08:30]} 14. Rf3 {[%emt 0:23:30]} Rg8 {[%emt 0:12:30]} 15. Re3 {[%emt 0:00:30]} Bxe5 {[%emt 0:01:30]} 16. fxe5 {[%emt 0:00:30]} Nh5 {[%emt 0:00:30]} 17. Rf3 {[%emt 0:02:30]} Ng7 {[%emt 0:04:30]} 18. Nf1 {[%emt 0:03:30]} h5 {[%emt 0:01:30]} 19. Re3 {[%emt 0:05:30]} Qh4 {[%emt 0:04:30]} 20. Rg3 {[%emt 0:02:30]} Qd8 {[%emt 0:04:34]} 21. Bh6 {[%emt 0:14:30]} Qc7 {[%emt 0:07:46]} 22. Bg5 {[%emt 0:02:30]} Nb8 {[%emt 0:02:40]} 23. Bf6 {[%emt 0:01:30]} Nc6 {[%emt 0:03:36]} 24. Ne3 {[%emt 0:02:30]} Ne7 {[%emt 0:00:47]} 25. Rf1 {[%emt 0:04:30]} a5 {[%emt 0:01:32]} 26. Bb5+ {[%emt 0:06:30]} Bc6 {[%emt 0:01:29]} 27. Bxg7 {[%emt 0:07:18]} Rxg7 {[%emt 0:00:05]} 28. Rf6 {[%emt 0:00:39]} Ng8 {[%emt 0:00:44]} 29. Rf2 {[%emt 0:08:19]} O-O-O {[%emt 0:00:05]} 30. Rf1 {[%emt 0:01:48]} Kb7 {[%emt 0:00:52]} 31. Rgf3 {[%emt 0:00:46]} Nh6 {[%emt 0:00:40]} 32. Rc1 {[%emt 0:01:21]} Rc8 {[%emt 0:01:00]} 33. Rf2 {[%emt 0:00:53]} Bxb5 {[%emt 0:00:38]} 34. Qxb5 {[%emt 0:00:38]} Qc6 {[%emt 0:00:02]} 35. Qb3 {[%emt 0:00:00]} Nf5 {[%emt 0:00:15]} 36. Nxf5 {[%emt 0:00:00]} gxf5 {[%emt 0:00:04]} 37. Qd1 {[%emt 0:01:02]} Rg5 {[%emt 0:00:03]} 38. Qd2 {[%emt 0:01:07]} Rcg8 {[%emt 0:00:32]} 39. b3 {[%emt 0:01:04]} R8g6 {[%emt 0:00:27]} 40. Rc2 {[%emt 0:00:31]} Rg4 {[%emt 0:01:05]} 41. Qd3 {[%emt 0:00:55]} h4 {[%emt 0:00:46]} 42. Kf1 {[%emt 0:00:19]} Re4 {[%emt 0:00:43]} 43. Rce2 {[%emt 0:00:28]} Rgg4 {[%emt 0:00:53]} 44. Ke1 {[%emt 0:01:17]} Ka7 {[%emt 0:00:33]} 45. Kd2 {[%emt 0:00:45]} Kb7 {[%emt 0:00:04]} 46. Kd1 {[%emt 0:01:30]} Ka7 {[%emt 0:00:38]} 1/2-1/2

[Event "3rd Mersin Open 2018"]
[Site "Mersin"]
[Date "2018.09.10"]
[Round "3.13"]
[White "Aladag, Begum"]
[Black "Menken, Ekin"]
[Result "1-0"]
[ECO "B26"]
[WhiteElo "1481"]
[BlackElo "1706"]
[Annotator "NA"]
[PlyCount "111"]
[EventDate "2018.09.09"]
[EventType "swiss"]
[EventCountry "TUR"]
[SourceTitle "playchess.com"]
[Source "ChessBase"]
[SourceQuality "1"]
[TimeControl "5400+30"]

1. e4 {[%emt 0:00:30]} c5 {[%emt 0:00:30]} 2. Nc3 {[%emt 0:00:00]} d6 {[%emt 0:00:30]} 3. g3 {[%emt 0:00:00]} Nc6 {[%emt 0:00:00]} 4. Bg2 {[%emt 0:00:30]} g6 {[%emt 0:00:00]} 5. d3 {[%emt 0:00:30]} Bg7 {[%emt 0:00:30]} 6. Be3 {[%emt 0:00:00]} e6 {[%emt 0:01:30]} 7. Qd2 {[%emt 0:00:00]} Rb8 {[%emt 0:00:30]} 8. Nge2 {[%emt 0:00:30]} Nd4 {[%emt 0:01:30]} 9. Nd1 {[%emt 0:02:30]} b5 {[%emt 0:01:30]} 10. c3 {[%emt 0:03:30]} Nc6 {[%emt 0:04:30]} 11. O-O {[%emt 0:01:30]} Nge7 {[%emt 0:00:30]} 12. Bh6 {[%emt 0:01:30]} O-O {[%emt 0:01:30]} 13. h4 {[%emt 0:02:30]} b4 {[%emt 0:05:30]} 14. h5 {[%emt 0:04:30]} bxc3 {[%emt 0:12:30]} 15. bxc3 {[%emt 0:00:30]} Ba6 {[%emt 0:03:30]} 16. Bxg7 {[%emt 0:03:30]} Kxg7 {[%emt 0:00:30]} 17. Nf4 {[%emt 0:08:30]} Qd7 {[%emt 0:10:30]} 18. h6+ {[%emt 0:12:30]} Kh8 {[%emt 0:04:30]} 19. Ne3 {[%emt 0:03:30]} Ng8 {[%emt 0:00:30]} 20. Nc4 {[%emt 0:06:30]} Ne5 {[%emt 0:07:30]} 21. Nb2 {[%emt 0:10:30]} Nxh6 {[%emt 0:04:30]} 22. Rfb1 {[%emt 0:00:30]} Ng8 {[%emt 0:00:30]} 23. d4 {[%emt 0:02:30]} cxd4 {[%emt 0:00:30]} 24. cxd4 {[%emt 0:00:30]} Nc4 {[%emt 0:00:30]} 25. Nxc4 {[%emt 0:00:30]} Bxc4 {[%emt 0:00:30]} 26. Rb4 {[%emt 0:01:30]} Rfc8 {[%emt 0:05:30]} 27. Rab1 {[%emt 0:00:30]} Rxb4 {[%emt 0:00:30]} 28. Rxb4 {[%emt 0:00:30]} Ne7 {[%emt 0:02:30]} 29. Qb2 {[%emt 0:00:30]} Ba6 {[%emt 0:02:30]} 30. Bh3 {[%emt 0:05:30]} d5 {[%emt 0:02:30]} 31. exd5 {[%emt 0:02:30]} Nxd5 {[%emt 0:00:00]} 32. Nxd5 {[%emt 0:00:00]} Qxd5 {[%emt 0:01:00]} 33. Bg2 {[%emt 0:00:00]} Qd6 {[%emt 0:03:30]} 34. a3 {[%emt 0:03:30]} Kg7 {[%emt 0:03:30]} 35. a4 {[%emt 0:02:30]} Rc4 {[%emt 0:04:39]} 36. d5+ {[%emt 0:01:30]} e5 {[%emt 0:01:30]} 37. Rb8 {[%emt 0:02:52]} Rd4 {[%emt 0:04:41]} 38. Re8 {[%emt 0:03:06]} Rd1+ {[%emt 0:02:59]} 39. Kh2 {[%emt 0:00:07]} Re1 {[%emt 0:00:01]} 40. Qc3 {[%emt 0:03:05]} Re2 {[%emt 0:01:09]} 41. Qf3 {[%emt 0:00:35]} Qd7 {[%emt 0:01:18]} 42. Ra8 {[%emt 0:00:49]} Qc7 {[%emt 0:05:28]} 43. d6 {[%emt 0:03:03]} Qxd6 {[%emt 0:00:56]} 44. Rxa7 {[%emt 0:00:22]} Bc4 {[%emt 0:00:28]} 45. Bf1 {[%emt 0:00:16]} Qc5 {[%emt 0:02:47]} 46. Bxe2 {[%emt 0:01:06]} Qxa7 {[%emt 0:00:30]} 47. Bxc4 {[%emt 0:00:06]} Qd4 {[%emt 0:00:33]} 48. Qxf7+ {[%emt 0:00:32]} Kh6 {[%emt 0:00:25]} 49. a5 {[%emt 0:01:24]} Qd2 {[%emt 0:00:35]} 50. a6 {[%emt 0:00:25]} Qd1 {[%emt 0:00:30]} 51. Qf8+ {[%emt 0:00:46]} Kg5 {[%emt 0:00:29]} 52. Qe7+ {[%emt 0:00:20]} Kh6 {[%emt 0:00:29]} 53. a7 {[%emt 0:00:15]} Qf3 {[%emt 0:00:25]} 54. Qf7 {[%emt 0:02:00]} Qe4 {[%emt 0:00:37]} 55. Bd5 {[%emt 0:00:25]} Qa4 {[%emt 0:00:09]} 56. a8=Q {[%emt 0:00:08]} 1-0

[Event "3rd Mersin Open 2018"]
[Site "Mersin"]
[Date "2018.09.10"]
[Round "3.14"]
[White "Ozcan, Berk"]
[Black "Guvel, Kazim"]
[Result "1-0"]
[ECO "B60"]
[WhiteElo "1617"]
[BlackElo "1504"]
[Annotator "NA"]
[PlyCount "71"]
[EventDate "2018.09.09"]
[EventType "swiss"]
[EventCountry "TUR"]
[SourceTitle "playchess.com"]
[Source "ChessBase"]
[SourceQuality "1"]
[TimeControl "5400+30"]

1. e4 {[%emt 0:01:30]} c5 {[%emt 0:00:30]} 2. Nf3 {[%emt 0:00:30]} d6 {[%emt 0:00:00]} 3. d4 {[%emt 0:00:30]} cxd4 {[%emt 0:00:00]} 4. Nxd4 {[%emt 0:00:00]} Nf6 {[%emt 0:01:30]} 5. Nc3 {[%emt 0:00:00]} Nc6 {[%emt 0:00:00]} 6. Bg5 {[%emt 0:00:00]} g6 {[%emt 0:01:00]} 7. Bxf6 {[%emt 0:05:00]} exf6 {[%emt 0:00:30]} 8. Qd2 {[%emt 0:04:30]} Nxd4 {[%emt 0:19:30]} 9. Qxd4 {[%emt 0:00:30]} Bh6 {[%emt 0:01:30]} 10. Bb5+ {[%emt 0:09:30]} Kf8 {[%emt 0:02:30]} 11. O-O {[%emt 0:00:30]} Kg7 {[%emt 0:01:30]} 12. f4 {[%emt 0:08:30]} a6 {[%emt 0:01:30]} 13. Bc4 {[%emt 0:01:30]} Be6 {[%emt 0:04:30]} 14. Rad1 {[%emt 0:11:30]} Bxc4 {[%emt 0:02:30]} 15. Qxc4 {[%emt 0:00:30]} Qb6+ {[%emt 0:01:30]} 16. Qd4 {[%emt 0:30:30]} Qxb2 {[%emt 0:00:30]} 17. Rb1 {[%emt 0:01:30]} Qxc2 {[%emt 0:00:30]} 18. Rf2 {[%emt 0:03:36]} Qxb1+ {[%emt 0:07:30]} 19. Nxb1 {[%emt 0:00:02]} Rhe8 {[%emt 0:00:00]} 20. Nc3 {[%emt 0:00:37]} Rac8 {[%emt 0:00:00]} 21. Nd5 {[%emt 0:03:38]} Re6 {[%emt 0:00:30]} 22. Qd3 {[%emt 0:06:02]} Rc1+ {[%emt 0:03:30]} 23. Rf1 {[%emt 0:00:02]} Rc5 {[%emt 0:00:30]} 24. g3 {[%emt 0:02:40]} b5 {[%emt 0:06:30]} 25. Kf2 {[%emt 0:05:05]} Rc4 {[%emt 0:00:30]} 26. Kf3 {[%emt 0:00:59]} g5 {[%emt 0:00:30]} 27. h3 {[%emt 0:00:15]} Kg8 {[%emt 0:02:30]} 28. Rf2 {[%emt 0:00:45]} Ra4 {[%emt 0:02:30]} 29. Nb6 {[%emt 0:00:41]} d5 {[%emt 0:14:30]} 30. Qxd5 {[%emt 0:01:35]} Ra3+ {[%emt 0:00:30]} 31. Kg2 {[%emt 0:00:10]} Bf8 {[%emt 0:00:30]} 32. Nd7 {[%emt 0:01:09]} gxf4 {[%emt 0:06:30]} 33. gxf4 {[%emt 0:01:31]} Rd6 {[%emt 0:03:29]} 34. Qf5 {[%emt 0:00:02]} Rdd3 {[%emt 0:00:00]} 35. Nxf6+ {[%emt 0:00:20]} Kg7 {[%emt 0:00:04]} 36. Qg5+ {[%emt 0:00:14]} 1-0

[Event "3rd Mersin Open 2018"]
[Site "Mersin"]
[Date "2018.09.12"]
[Round "6.7"]
[White "Acar, Utku Cengiz"]
[Black "Gasimov, Parviz"]
[Result "1/2-1/2"]
[ECO "C06"]
[WhiteElo "2122"]
[BlackElo "2341"]
[Annotator "NA"]
[PlyCount "54"]
[EventDate "2018.09.09"]
[EventType "swiss"]
[EventCountry "TUR"]
[SourceTitle "playchess.com"]
[Source "ChessBase"]
[SourceQuality "1"]
[TimeControl "5400+30"]

1. e4 {[%emt 0:01:30]} e6 {[%emt 0:00:30]} 2. d4 {[%emt 0:00:30]} d5 {[%emt 0:00:00]} 3. Nd2 {[%emt 0:00:30]} Nf6 {[%emt 0:00:00]} 4. e5 {[%emt 0:01:30]} Nfd7 {[%emt 0:00:30]} 5. Bd3 {[%emt 0:01:30]} c5 {[%emt 0:00:30]} 6. c3 {[%emt 0:00:30]} Nc6 {[%emt 0:00:00]} 7. Ne2 {[%emt 0:01:30]} cxd4 {[%emt 0:00:00]} 8. cxd4 {[%emt 0:00:30]} f6 {[%emt 0:00:30]} 9. exf6 {[%emt 0:00:00]} Qxf6 {[%emt 0:00:30]} 10. Nf3 {[%emt 0:00:00]} h6 {[%emt 0:00:30]} 11. O-O {[%emt 0:00:30]} Bd6 {[%emt 0:00:00]} 12. Ng3 {[%emt 0:01:30]} O-O {[%emt 0:00:00]} 13. Bc2 {[%emt 0:02:30]} Rf7 {[%emt 0:01:30]} 14. Nh5 {[%emt 0:04:30]} Qd8 {[%emt 0:00:30]} 15. Re1 {[%emt 0:00:00]} Nf8 {[%emt 0:02:30]} 16. Ne5 {[%emt 0:02:00]} Nxe5 {[%emt 0:02:30]} 17. dxe5 {[%emt 0:00:30]} Bc5 {[%emt 0:00:30]} 18. Be3 {[%emt 0:00:00]} d4 {[%emt 0:01:30]} 19. Bf4 {[%emt 0:02:00]} Bd7 {[%emt 0:00:30]} 20. Qg4 {[%emt 0:00:30]} Kh8 {[%emt 0:02:30]} 21. Bd3 {[%emt 0:00:30]} Bc6 {[%emt 0:13:30]} 22. Rac1 {[%emt 0:09:30]} Bb6 {[%emt 0:07:30]} 23. Bd2 {[%emt 0:08:30]} Qd7 {[%emt 0:22:30]} 24. Bb4 {[%emt 0:07:30]} Bb5 {[%emt 0:05:30]} 25. Nf4 {[%emt 0:24:30]} Bxd3 {[%emt 0:08:30]} 26. Nxd3 {[%emt 0:00:30]} Qb5 {[%emt 0:01:30]} 27. Qe4 {[%emt 0:02:30]} Rd8 {[%emt 0:09:30]} 1/2-1/2

[Event "3rd Mersin Open 2018"]
[Site "Mersin"]
[Date "2018.09.12"]
[Round "6.8"]
[White "Yasin, Hur"]
[Black "Buyukasik, Diyap"]
[Result "0-1"]
[ECO "B90"]
[WhiteElo "2044"]
[BlackElo "2305"]
[Annotator "NA"]
[PlyCount "92"]
[EventDate "2018.09.09"]
[EventType "swiss"]
[EventCountry "TUR"]
[SourceTitle "playchess.com"]
[Source "ChessBase"]
[SourceQuality "1"]
[TimeControl "5400+30"]

1. e4 {[%emt 0:06:30]} c5 {[%emt 0:00:30]} 2. Nf3 {[%emt 0:00:00]} d6 {[%emt 0:00:00]} 3. d4 {[%emt 0:00:00]} cxd4 {[%emt 0:00:00]} 4. Nxd4 {[%emt 0:00:00]} Nf6 {[%emt 0:00:30]} 5. Nc3 {[%emt 0:00:00]} a6 {[%emt 0:00:00]} 6. Be3 {[%emt 0:00:30]} e5 {[%emt 0:00:00]} 7. Nf3 {[%emt 0:00:30]} Be7 {[%emt 0:00:00]} 8. a4 {[%emt 0:00:30]} O-O {[%emt 0:04:00]} 9. a5 {[%emt 0:00:30]} Nbd7 {[%emt 0:03:30]} 10. Be2 {[%emt 0:00:30]} Qc7 {[%emt 0:00:30]} 11. Nd2 {[%emt 0:00:00]} Nc5 {[%emt 0:08:30]} 12. Nc4 {[%emt 0:03:00]} Be6 {[%emt 0:07:30]} 13. Nb6 {[%emt 0:01:30]} Rae8 {[%emt 0:04:30]} 14. f3 {[%emt 0:00:30]} Ncd7 {[%emt 0:03:30]} 15. Ncd5 {[%emt 0:04:30]} Bxd5 {[%emt 0:02:30]} 16. exd5 {[%emt 0:00:30]} Nh5 {[%emt 0:02:30]} 17. g3 {[%emt 0:04:30]} f5 {[%emt 0:02:30]} 18. Nxd7 {[%emt 0:03:30]} Qxd7 {[%emt 0:00:00]} 19. f4 {[%emt 0:02:30]} Nf6 {[%emt 0:09:00]} 20. O-O {[%emt 0:01:30]} exf4 {[%emt 0:00:30]} 21. Bxf4 {[%emt 0:00:30]} Ne4 {[%emt 0:00:30]} 22. c3 {[%emt 0:06:30]} Bf6 {[%emt 0:04:30]} 23. Qd3 {[%emt 0:00:30]} Re7 {[%emt 0:08:30]} 24. Bf3 {[%emt 0:00:30]} g5 {[%emt 0:05:30]} 25. Be3 {[%emt 0:03:30]} Qe8 {[%emt 0:02:30]} 26. Bb6 {[%emt 0:03:30]} g4 {[%emt 0:08:30]} 27. Bg2 {[%emt 0:02:30]} Bg5 {[%emt 0:02:30]} 28. Rae1 {[%emt 0:11:30]} Qg6 {[%emt 0:08:10]} 29. Re2 {[%emt 0:03:30]} Rfe8 {[%emt 0:00:49]} 30. Rfe1 {[%emt 0:00:30]} h5 {[%emt 0:00:33]} 31. b4 {[%emt 0:06:30]} h4 {[%emt 0:00:56]} 32. c4 {[%emt 0:00:30]} h3 {[%emt 0:04:32]} 33. Bh1 {[%emt 0:01:30]} Bd2 {[%emt 0:01:19]} 34. Bxe4 {[%emt 0:14:58]} Bxe1 {[%emt 0:00:07]} 35. Bxf5 {[%emt 0:00:02]} Qf7 {[%emt 0:02:14]} 36. Be6 {[%emt 0:04:09]} Rxe6 {[%emt 0:00:06]} 37. dxe6 {[%emt 0:01:05]} Rxe6 {[%emt 0:00:23]} 38. b5 {[%emt 0:01:37]} Bb4 {[%emt 0:02:34]} 39. bxa6 {[%emt 0:07:34]} bxa6 {[%emt 0:00:02]} 40. Rxe6 {[%emt 0:02:52]} Qxe6 {[%emt 0:00:06]} 41. Qd5 {[%emt 0:00:19]} Qxd5 {[%emt 0:01:14]} 42. cxd5 {[%emt 0:00:04]} Kf7 {[%emt 0:00:04]} 43. Bd8 {[%emt 0:02:04]} Kg6 {[%emt 0:00:13]} 44. Kf2 {[%emt 0:00:30]} Kf5 {[%emt 0:00:02]} 45. Ke3 {[%emt 0:02:32]} Ke5 {[%emt 0:00:07]} 46. Bb6 {[%emt 0:00:48]} Bc5+ {[%emt 0:00:34]} 0-1